fUSD/lending_fUSD_20250907
["ID","MTS","AMOUNT","RATE_DAILY","PERIOD"]
[384187274,1757289043805,-400.0,0.00019439,2]
[384187275,1757289043815,-455.17914468,0.00019439,2]
[384187276,1757289043825,-400.0,0.00019439,2]
[384187277,1757289043834,-513.89,0.00019439,2]
[384187278,1757289043843,-400.0,0.00019439,2]
[384187279,1757289043852,-400.0,0.00019439,2]
[384187280,1757289043862,-400.0,0.00019439,2]
[384187281,1757289043871,-695.12,0.00019439,2]
[384187282,1757289043881,-631.58,0.00019439,2]
[384187283,1757289043890,-164.02055104,0.00019439,2]
[384187284,1757289043900,-417.16,0.00019439,2]
[384187285,1757289043909,-551.02,0.00019439,2]
[384187286,1757289043918,-680.34,0.00019439,2]
[384187287,1757289043928,-931.67,0.00019439,2]
[384187288,1757289043937,-400.0,0.00019439,2]
[384187289,1757289043946,-400.0,0.00019439,2]
[384187290,1757289043956,-400.0,0.00019439,2]
[384187291,1757289043966,-400.0,0.00019439,2]
[384187292,1757289043976,-400.0,0.00019439,2]
[384187293,1757289043986,-400.0,0.00019439,2]
[384187294,1757289043997,-400.0,0.00019439,2]
[384187295,1757289044006,-721.97,0.00019439,2]
[384187296,1757289044015,-400.0,0.00019439,2]
[384187297,1757289044025,-492.94,0.00019439,2]
[384187298,1757289044034,-400.0,0.00019439,2]
[384187299,1757289044043,-476.86,0.00019439,2]
[384187300,1757289044053,-537.73,0.00019439,2]
[384187301,1757289044063,-400.0,0.00019439,2]
[384187302,1757289044072,-400.0,0.00019439,2]
[384187303,1757289044082,-546.97,0.00019439,2]
[384187304,1757289044092,-400.0,0.00019439,2]
[384187305,1757289044101,-558.49,0.00019439,2]
[384187306,1757289044111,-540.97,0.00019439,2]
[384187307,1757289044121,-400.0,0.00019439,2]
[384187308,1757289044130,-400.0,0.00019439,2]
[384187309,1757289044140,-400.0,0.00019439,2]
[384187310,1757289044150,-400.0,0.00019439,2]
[384187311,1757289044159,-642.78,0.00019439,2]
[384187312,1757289044169,-400.0,0.00019439,2]
[384187313,1757289044179,-305.6476325,0.00019439,2]
[384187314,1757289044189,-400.0,0.00019439,2]
[384187315,1757289044198,-400.0,0.00019439,2]
[384187316,1757289044211,-400.0,0.00019439,2]
[384187317,1757289044221,-5848.79,0.00019439,2]
[384187318,1757289044231,-400.0,0.00019439,2]
[384187319,1757289044241,-262.36352328,0.00019439,2]
[384187320,1757289044251,-528.57,0.00019439,2]
[384187321,1757289044432,-2076.57,0.00019439,2]
[384187322,1757289044451,-400.0,0.00019439,2]
[384187323,1757289044462,-887.32,0.00019439,2]
[384187324,1757289044472,-1533.2,0.00019439,2]
[384187325,1757289044481,-404.54,0.00019439,2]
[384187326,1757289044492,-1329.55,0.00019439,2]
[384187327,1757289044501,-3236.47,0.00019439,2]
[384187328,1757289044511,-442.72,0.00019439,2]
[384187329,1757289044521,-700.12,0.00019439,2]
[384187330,1757289044531,-410.38,0.00019439,2]
[384187331,1757289044541,-1398.76,0.00019439,2]
[384187332,1757289044550,-400.0,0.00019439,2]
[384187333,1757289044560,-687.34,0.00019439,2]
[384187334,1757289044569,-899.5,0.00019439,2]
[384187335,1757289044579,-1161.87,0.00019439,2]
[384187336,1757289044589,-910.91,0.00019439,2]
[384187337,1757289044598,-1564.66,0.00019439,2]
[384187338,1757289044608,-400.0,0.00019439,2]
[384187339,1757289044618,-647.15,0.00019439,2]
[384187340,1757289044627,-1287.85,0.00019439,2]
[384187341,1757289044637,-400.0,0.00019439,2]
[384187342,1757289044647,-400.0,0.00019439,2]
[384187343,1757289044657,-721.99,0.00019439,2]
[384187344,1757289044667,-500.0,0.00019439,2]
[384187345,1757289044677,-482.25,0.00019439,2]
[384187346,1757289044686,-681.74,0.00019439,2]
[384187347,1757289044696,-1166.4,0.00019439,2]
[384187348,1757289044707,-400.0,0.00019439,2]
[384187349,1757289044718,-428.57,0.00019439,2]
[384187350,1757289044728,-1002.87,0.00019439,2]
[384187351,1757289044739,-554.35,0.00019439,2]
[384187352,1757289044749,-1660.98,0.00019439,2]
[384187353,1757289044758,-400.0,0.00019439,2]
[384187354,1757289044768,-1406.6,0.00019439,2]
[384187355,1757289044777,-400.0,0.00019439,2]
[384187356,1757289044787,-584.31,0.00019439,2]
[384187357,1757289044796,-725.2,0.00019439,2]
[384187358,1757289044806,-521.09,0.00019439,2]
[384187359,1757289044816,-920.22,0.00019439,2]
[384187360,1757289044826,-400.0,0.00019439,2]
[384187361,1757289044836,-549.91,0.00019439,2]
[384187362,1757289044846,-500.0,0.00019439,2]
[384187363,1757289044856,-3276.6,0.00019439,2]
[384187364,1757289044866,-400.0,0.00019439,2]
[384187365,1757289044876,-498.75,0.00019439,2]
[384187366,1757289044886,-1378.31,0.00019439,2]
[384187367,1757289044896,-415.84,0.00019439,2]
[384187368,1757289044906,-583.36,0.00019439,2]
[384187369,1757289044915,-2562.87,0.00019439,2]
[384187370,1757289044925,-467.31,0.00019439,2]
[384187371,1757289044936,-497.7,0.00019439,2]
[384187372,1757289044946,-3266.95,0.00019439,2]
[384187373,1757289044955,-574.06,0.00019439,2]
[384187374,1757289044966,-400.0,0.00019439,2]
[384187375,1757289044975,-1000.0,0.00019439,2]
[384187376,1757289044984,-675.5,0.00019439,2]
[384187377,1757289044994,-572.97,0.00019439,2]
[384187378,1757289045004,-1336.36,0.00019439,2]
[384187379,1757289045014,-1320.69,0.00019439,2]
[384187380,1757289045024,-442.14,0.00019439,2]
[384187381,1757289045033,-781.51,0.00019439,2]
[384187382,1757289045043,-1174.61,0.00019439,2]
[384187383,1757289045053,-1049.24,0.00019439,2]
[384187384,1757289045062,-400.0,0.00019439,2]
[384187385,1757289045072,-400.0,0.00019439,2]
[384187386,1757289045082,-1937.22,0.00019439,2]
[384187387,1757289045091,-400.0,0.00019439,2]
[384187388,1757289045101,-1477.86,0.00019439,2]
[384187389,1757289045110,-1788.36,0.00019439,2]
[384187390,1757289045120,-607.18,0.00019439,2]
[384187391,1757289045129,-1295.09,0.00019439,2]
[384187392,1757289045139,-400.0,0.00019439,2]
[384187393,1757289045149,-613.34,0.00019439,2]
[384187394,1757289045158,-1028.77,0.00019439,2]
[384187395,1757289045169,-761.81,0.00019439,2]
[384187396,1757289045178,-400.0,0.00019439,2]
[384187397,1757289045188,-3220.15,0.00019439,2]
[384187398,1757289045197,-589.8,0.00019439,2]
[384187399,1757289045209,-671.47,0.00019439,2]
[384187400,1757289045219,-3242.54,0.00019439,2]
[384187401,1757289045228,-569.7,0.00019439,2]
[384187402,1757289045237,-400.0,0.00019439,2]
[384187403,1757289045247,-400.0,0.00019439,2]
[384187404,1757289045257,-151.0,0.00019451,2]
[384187405,1757289045266,-7423.74148247,0.00019466,2]
[384187406,1757289045276,-634.93794942,0.00019466,2]
[384187407,1757289045287,-5000.0,0.00019466,2]
[384187408,1757289045297,-151.0,0.0001947,2]
[384187409,1757289045307,-168.0,0.00019487,2]
[384187410,1757289045318,-152.0,0.00019507,2]
[384187411,1757289045329,-152.0,0.00019507,2]
[384187412,1757289045339,-152.0,0.00019507,2]
[384187413,1757289045350,-1224.0,0.00019507,2]
[384187414,1757289045361,-154.0,0.00019507,2]
[384187415,1757289045371,-7423.7414824,0.00019514,2]
[384187416,1757289045381,-634.93794939,0.00019514,2]
[384187417,1757289045392,-500.0,0.00019544,2]
[384187418,1757289045403,-7423.7414824,0.00019562,2]
[384187419,1757289045414,-634.93794939,0.00019562,2]
[384187420,1757289045426,-1055.9985022,0.00019565,2]
[384187421,1757289045436,-711.05,0.00019565,2]
[384187422,1757289045446,-400.0,0.00019565,2]
[384187423,1757289045456,-806.68,0.00019565,2]
[384187424,1757289045466,-400.0,0.00019565,2]
[384187425,1757289045476,-299.75,0.00019565,2]
[384187426,1757289045486,-400.0,0.00019565,2]
[384187427,1757289045496,-548.88,0.00019565,2]
[384187428,1757289045506,-400.0,0.00019565,2]
[384187429,1757289045516,-584.03,0.00019565,2]
[384187430,1757289045526,-705.86,0.00019565,2]
[384187431,1757289045536,-1810.77,0.00019565,2]
[384187432,1757289045546,-689.46,0.00019565,2]
[384187433,1757289045556,-456.4,0.00019565,2]
[384187434,1757289045566,-2647.46,0.00019565,2]
[384187435,1757289045576,-1495.8,0.00019565,2]
[384187436,1757289045585,-815.14,0.00019565,2]
[384187437,1757289045594,-400.0,0.00019565,2]
[384187438,1757289045605,-479.72,0.00019565,2]
[384187439,1757289045615,-400.0,0.00019565,2]
[384187440,1757289045625,-588.82,0.00019565,2]
[384187441,1757289045635,-2878.83,0.00019565,2]
[384187442,1757289045645,-400.0,0.00019565,2]
[384187443,1757289045654,-400.0,0.00019565,2]
[384187444,1757289045664,-860.98,0.00019565,2]
[384187445,1757289045674,-454.49,0.00019565,2]
[384187446,1757289045684,-400.0,0.00019565,2]
[384187447,1757289045694,-418.89,0.00019565,2]
[384187448,1757289045704,-400.0,0.00019565,2]
[384187449,1757289045714,-218.74909405,0.00019566,2]
[384187450,1757289045724,-400.0,0.00019566,2]
[384187451,1757289045734,-459.53,0.00019566,2]
[384187452,1757289045743,-416.65269171,0.00019566,2]
[384187453,1757289045753,-400.0,0.00019566,2]
[384187454,1757289045763,-400.0,0.00019566,2]
[384187455,1757289045772,-400.0,0.00019566,2]
[384187456,1757289045782,-498.38,0.00019566,2]
[384187457,1757289045792,-400.0,0.00019566,2]
[384187458,1757289045802,-543.44,0.00019566,2]
[384187459,1757289045811,-500.0,0.00019566,2]
[384187460,1757289045821,-400.0,0.00019566,2]
[384187461,1757289045831,-151.0,0.00019566,2]
[384187462,1757289045842,-151.0,0.00019566,2]
[384187463,1757289045852,-400.0,0.00019566,2]
[384187464,1757289045861,-274.98096086,0.00019566,2]
[384187465,1757289045871,-400.0,0.00019566,2]
[384187466,1757289045880,-400.0,0.00019566,2]
[384187467,1757289045890,-400.0,0.00019566,2]
[384187468,1757289045900,-400.0,0.00019566,2]
[384187469,1757289045910,-400.0,0.00019566,2]
[384187470,1757289045920,-400.0,0.00019566,2]
[384187471,1757289045929,-400.0,0.00019566,2]
[384187472,1757289045939,-400.0,0.00019566,2]
[384187473,1757289045950,-662.99,0.00019566,2]
[384187474,1757289045960,-400.0,0.00019566,2]
[384187475,1757289045970,-532.82,0.00019566,2]
[384187476,1757289045979,-400.0,0.00019566,2]
[384187477,1757289045989,-400.0,0.00019566,2]
[384187478,1757289045999,-400.0,0.00019566,2]
[384187479,1757289046009,-780.69,0.00019566,2]
[384187480,1757289046019,-400.0,0.00019566,2]
[384187481,1757289046030,-400.0,0.00019566,2]
[384187482,1757289046040,-400.0,0.00019566,2]
[384187483,1757289046050,-400.0,0.00019566,2]
[384187484,1757289046060,-400.0,0.00019566,2]
[384187485,1757289046070,-400.0,0.00019566,2]
[384187486,1757289046079,-400.0,0.00019566,2]
[384187487,1757289046090,-400.0,0.00019566,2]
[384187488,1757289046100,-400.0,0.00019566,2]
[384187489,1757289046109,-400.0,0.00019566,2]
[384187490,1757289046119,-400.0,0.00019566,2]
[384187491,1757289046129,-580.89,0.00019566,2]
[384187492,1757289046138,-400.0,0.00019566,2]
[384187493,1757289046148,-400.0,0.00019566,2]
[384187494,1757289046157,-470.14,0.00019566,2]
[384187495,1757289046167,-400.0,0.00019566,2]
[384187496,1757289046176,-400.0,0.00019566,2]
[384187497,1757289046186,-400.0,0.00019566,2]
[384187498,1757289046196,-400.0,0.00019566,2]
[384187499,1757289046209,-400.0,0.00019566,2]
[384187500,1757289046219,-400.0,0.00019566,2]
[384187501,1757289046229,-400.0,0.00019566,2]
[384187502,1757289046238,-400.0,0.00019566,2]
[384187503,1757289046249,-400.0,0.00019566,2]
[384187504,1757289046259,-400.0,0.00019566,2]
[384187505,1757289046268,-500.0,0.00019566,2]
[384187506,1757289046279,-400.0,0.00019566,2]
[384187507,1757289046289,-400.0,0.00019566,2]
[384187508,1757289046298,-400.0,0.00019566,2]
[384187509,1757289046307,-400.0,0.00019566,2]
[384187510,1757289046318,-495.87,0.00019566,2]
[384187511,1757289046327,-400.0,0.00019566,2]
[384187512,1757289046337,-413.49611607,0.00019566,2]
[384187513,1757289046346,-400.0,0.00019566,2]
[384187514,1757289046366,-400.0,0.00019566,2]
[384187515,1757289046376,-400.0,0.00019566,2]
[384187516,1757289046386,-400.0,0.00019566,2]
[384187517,1757289046396,-400.0,0.00019566,2]
[384187518,1757289046406,-400.0,0.00019566,2]
[384187519,1757289046416,-400.0,0.00019566,2]
[384187520,1757289046427,-431.21,0.00019566,2]
[384187521,1757289046437,-400.0,0.00019566,2]
[384187522,1757289046447,-400.0,0.00019566,2]
[384187523,1757289046457,-400.0,0.00019566,2]
[384187524,1757289046467,-500.0,0.00019566,2]
[384187525,1757289046477,-400.0,0.00019566,2]
[384187526,1757289046487,-703.98,0.00019566,2]
[384187527,1757289046497,-400.0,0.00019566,2]
[384187528,1757289046507,-400.0,0.00019566,2]
[384187529,1757289046516,-400.0,0.00019566,2]
[384187530,1757289046526,-400.0,0.00019566,2]
[384187531,1757289046536,-400.0,0.00019566,2]
[384187532,1757289046546,-528.32,0.00019566,2]
[384187533,1757289046556,-878.78,0.00019566,2]
[384187534,1757289046565,-400.0,0.00019566,2]
[384187535,1757289046575,-400.0,0.00019566,2]
[384187536,1757289046585,-584.9,0.00019566,2]
[384187537,1757289046596,-400.0,0.00019566,2]
[384187538,1757289046607,-400.0,0.00019566,2]
[384187539,1757289046616,-400.0,0.00019566,2]
[384187540,1757289046626,-400.0,0.00019566,2]
[384187541,1757289046636,-400.0,0.00019566,2]
[384187542,1757289046646,-400.0,0.00019566,2]
[384187543,1757289046656,-400.0,0.00019566,2]
[384187544,1757289046666,-400.0,0.00019566,2]
[384187545,1757289046676,-400.0,0.00019566,2]
[384187546,1757289046686,-400.0,0.00019566,2]
[384187547,1757289046695,-400.0,0.00019566,2]
[384187548,1757289046705,-520.04,0.00019566,2]
[384187549,1757289046715,-536.09,0.00019566,2]
[384187550,1757289046725,-400.0,0.00019566,2]
[384187551,1757289046735,-414.27247938,0.00019566,2]
[384187552,1757289046745,-400.0,0.00019566,2]
[384187553,1757289046759,-400.0,0.00019566,2]
[384187554,1757289046770,-889.24,0.00019566,2]
[384187555,1757289046780,-400.0,0.00019566,2]
[384187556,1757289046790,-474.47,0.00019566,2]
[384187557,1757289046800,-400.0,0.00019566,2]
[384187559,1757289047199,-151.0,0.00019566,2]
[384187560,1757289047268,-151.0,0.00019566,2]
[384187561,1757289047278,-400.0,0.00019566,2]
[384187562,1757289047288,-400.0,0.00019566,2]
[384187563,1757289047297,-151.0,0.00019566,2]
[384187564,1757289047307,-151.0,0.00019566,2]
[384187565,1757289047317,-500.0,0.00019566,2]
[384187566,1757289047327,-151.0,0.00019566,2]
[384187567,1757289047336,-151.0,0.00019566,2]
[384187568,1757289047346,-151.0,0.00019566,2]
[384187569,1757289047356,-508.39,0.00019566,2]
[384187570,1757289047366,-400.0,0.00019566,2]
[384187571,1757289047376,-152.711043,0.00019566,2]
[384187572,1757289047386,-647.85,0.00019566,2]
[384187573,1757289047396,-400.0,0.00019566,2]
[384187574,1757289047409,-151.0,0.00019566,2]
[384187575,1757289047420,-488.78,0.00019566,2]
[384187576,1757289047429,-300.903707,0.00019566,2]
[384187577,1757289047440,-151.0,0.00019566,2]
[384187578,1757289047450,-400.0,0.00019566,2]
[384187579,1757289047459,-151.0,0.00019566,2]
[384187580,1757289047469,-151.0,0.00019566,2]
[384187581,1757289047479,-151.0,0.00019566,2]
[384187582,1757289047488,-151.0,0.00019566,2]
[384187583,1757289047498,-151.0,0.00019566,2]
[384187584,1757289047507,-400.0,0.00019566,2]
[384187585,1757289047517,-392.442081,0.00019566,2]
[384187586,1757289047527,-400.0,0.00019566,2]
[384187587,1757289047537,-400.0,0.00019566,2]
[384187588,1757289047546,-392.442081,0.00019566,2]
[384187589,1757289047555,-400.0,0.00019566,2]
[384187590,1757289047565,-392.442081,0.00019566,2]
[384187591,1757289047574,-392.442081,0.00019566,2]
[384187592,1757289047584,-428.57,0.00019566,2]
[384187593,1757289047593,-400.0,0.00019566,2]
[384187594,1757289047603,-392.442081,0.00019566,2]
[384187595,1757289047612,-392.442081,0.00019566,2]
[384187596,1757289047622,-402.94,0.00019566,2]
[384187597,1757289047636,-600.36,0.00019566,2]
[384187598,1757289047645,-392.442081,0.00019566,2]
[384187599,1757289047656,-392.442081,0.00019566,2]
[384187600,1757289047667,-400.0,0.00019566,2]
[384187601,1757289047676,-151.0,0.00019566,2]
[384187602,1757289047686,-151.0,0.00019566,2]
[384187603,1757289047695,-741.85,0.00019566,2]
[384187604,1757289047705,-151.0,0.00019566,2]
[384187605,1757289047715,-297.25587,0.00019566,2]
[384187606,1757289047725,-400.0,0.00019566,2]
[384187607,1757289047734,-491.25,0.00019566,2]
[384187608,1757289047744,-400.0,0.00019566,2]
[384187609,1757289047758,-400.0,0.00019566,2]
[384187610,1757289047768,-400.0,0.00019566,2]
[384187611,1757289047778,-400.0,0.00019566,2]
[384187612,1757289047787,-403.51554052,0.00019566,2]
[384187613,1757289047798,-400.0,0.00019566,2]
[384187614,1757289047807,-400.0,0.00019566,2]
[384187615,1757289047817,-400.0,0.00019566,2]
[384187616,1757289047827,-400.0,0.00019566,2]
[384187617,1757289047838,-400.0,0.00019566,2]
[384187618,1757289047847,-318.89751471,0.00019566,2]
[384187619,1757289047858,-170.77638754,0.00019566,2]
[384187620,1757289047868,-400.0,0.00019566,2]
[384187621,1757289047880,-635.72,0.00019566,2]
[384187622,1757289047890,-183.1758,0.00019566,2]
[384187623,1757289047901,-405.73,0.00019566,2]
[384187624,1757289047911,-400.0,0.00019566,2]
[384187625,1757289047922,-400.0,0.00019566,2]
[384187626,1757289047931,-438.14,0.00019566,2]
[384187627,1757289047941,-400.0,0.00019566,2]
[384187628,1757289047951,-431.04,0.00019566,2]
[384187629,1757289047961,-500.0,0.00019566,2]
[384187630,1757289047970,-400.0,0.00019566,2]
[384187631,1757289047980,-400.0,0.00019566,2]
[384187632,1757289047990,-436.03,0.00019566,2]
[384187633,1757289047999,-165.683427,0.00019566,2]
[384187634,1757289048008,-151.0,0.00019566,2]
[384187635,1757289048018,-459.85,0.00019566,2]
[384187636,1757289048028,-151.0,0.00019566,2]
[384187637,1757289048037,-151.0,0.00019566,2]
[384187638,1757289048047,-151.0,0.00019566,2]
[384187639,1757289048057,-400.0,0.00019566,2]
[384187640,1757289048066,-400.0,0.00019566,2]
[384187641,1757289048076,-603.9,0.00019566,2]
[384187642,1757289048086,-400.0,0.00019566,2]
[384187643,1757289048096,-524.02,0.00019566,2]
[384187644,1757289048106,-400.0,0.00019566,2]
[384187645,1757289048116,-476.52,0.00019566,2]
[384187646,1757289048127,-428.15,0.00019566,2]
[384187647,1757289048136,-400.0,0.00019566,2]
[384187648,1757289048146,-400.0,0.00019566,2]
[384187649,1757289048156,-400.0,0.00019566,2]
[384187650,1757289048167,-400.0,0.00019566,2]
[384187651,1757289048177,-400.0,0.00019566,2]
[384187652,1757289048187,-151.0,0.00019566,2]
[384187653,1757289048197,-428.73,0.00019566,2]
[384187654,1757289048210,-172.10487213,0.00019566,2]
[384187655,1757289048220,-400.0,0.00019566,2]
[384187656,1757289048230,-400.0,0.00019566,2]
[384187657,1757289048240,-418.95,0.00019566,2]
[384187658,1757289048251,-472.69,0.00019566,2]
[384187659,1757289048261,-400.0,0.00019566,2]
[384187660,1757289048271,-151.0,0.00019566,2]
[384187661,1757289048283,-151.0,0.00019566,2]
[384187662,1757289048294,-400.0,0.00019566,2]
[384187663,1757289048303,-762.19,0.00019566,2]
[384187664,1757289048313,-400.0,0.00019566,2]
[384187665,1757289048330,-400.0,0.00019566,2]
[384187666,1757289048345,-579.2,0.00019566,2]
[384187667,1757289048355,-400.0,0.00019566,2]
[384187668,1757289048366,-400.0,0.00019566,2]
[384187669,1757289048377,-151.0,0.00019566,2]
[384187670,1757289048388,-151.0,0.00019566,2]
[384187671,1757289048399,-544.84,0.00019566,2]
[384187672,1757289048409,-151.0,0.00019566,2]
[384187673,1757289048420,-151.0,0.00019566,2]
[384187674,1757289048431,-151.0,0.00019566,2]
[384187675,1757289048442,-151.0,0.00019566,2]
[384187676,1757289048453,-400.0,0.00019566,2]
[384187677,1757289048464,-151.0,0.00019566,2]
[384187678,1757289048474,-151.0,0.00019566,2]
[384187679,1757289048485,-151.0,0.00019566,2]
[384187680,1757289048495,-151.0,0.00019566,2]
[384187681,1757289048506,-485.35,0.00019566,2]
[384187682,1757289048516,-400.0,0.00019566,2]
[384187683,1757289048527,-151.0,0.00019566,2]
[384187684,1757289048537,-400.0,0.00019566,2]
[384187685,1757289048548,-581.67,0.00019566,2]
[384187686,1757289048559,-666.49,0.00019566,2]
[384187687,1757289048569,-151.0,0.00019566,2]
[384187688,1757289048580,-151.0,0.00019566,2]
[384187689,1757289048590,-400.0,0.00019566,2]
[384187690,1757289048600,-400.0,0.00019566,2]
[384187691,1757289048611,-615.09,0.00019566,2]
[384187692,1757289048621,-498.25,0.00019566,2]
[384187693,1757289048632,-400.0,0.00019566,2]
[384187694,1757289048643,-199.340795,0.00019566,2]
[384187695,1757289048654,-400.0,0.00019566,2]
[384187696,1757289048665,-400.0,0.00019566,2]
[384187697,1757289048676,-558.39,0.00019566,2]
[384187698,1757289048686,-400.0,0.00019566,2]
[384187699,1757289048696,-683.91,0.00019566,2]
[384187700,1757289048706,-400.0,0.00019566,2]
[384187701,1757289048716,-400.0,0.00019566,2]
[384187702,1757289048732,-400.0,0.00019566,2]
[384187703,1757289048743,-16710.7446576,0.00019566,2]
[384187704,1757289048754,-400.0,0.00019566,2]
[384187705,1757289048764,-400.0,0.00019566,2]
[384187706,1757289048776,-421.39,0.00019566,2]
[384187707,1757289048786,-1569.45,0.00019566,2]
[384187708,1757289048797,-400.0,0.00019566,2]
[384187709,1757289048807,-409.50025028,0.00019566,2]
[384187710,1757289048818,-450.59,0.00019566,2]
[384187711,1757289048828,-596.02,0.00019566,2]
[384187712,1757289048839,-513.86,0.00019566,2]
[384187713,1757289048850,-400.0,0.00019566,2]
[384187714,1757289048861,-400.0,0.00019566,2]
[384187715,1757289048872,-400.0,0.00019566,2]
[384187716,1757289048883,-400.0,0.00019566,2]
[384187717,1757289048894,-601.22,0.00019566,2]
[384187718,1757289048905,-400.0,0.00019566,2]
[384187719,1757289048916,-400.0,0.00019566,2]
[384187720,1757289048926,-335.61767293,0.00019566,2]
[384187721,1757289048937,-500.0,0.00019566,2]
[384187722,1757289048948,-400.0,0.00019566,2]
[384187723,1757289048959,-406.26,0.00019566,2]
[384187724,1757289048971,-724.53,0.00019566,2]
[384187725,1757289048982,-400.0,0.00019566,2]
[384187726,1757289048993,-400.0,0.00019566,2]
[384187727,1757289049004,-636.59,0.00019566,2]
[384187728,1757289049015,-435.03,0.00019566,2]
[384187729,1757289049025,-617.02,0.00019566,2]
[384187730,1757289049036,-400.0,0.00019566,2]
[384187731,1757289049047,-536.52,0.00019566,2]
[384187732,1757289049058,-83.82966608,0.00019566,2]
[384187733,1757289049426,-400.0,0.00019565,2]
[384187734,1757289049436,-125.63298051,0.00019565,2]
[384187735,1757289050854,-499.89140957,0.00018532,2]
[384187736,1757289050864,-500.0,0.00018532,2]
[384187737,1757289050874,-400.0,0.00019315,2]
[384187738,1757289050883,-400.0,0.00019439,2]
[384187739,1757289050893,-274.36701949,0.00019565,2]
[384187740,1757289050903,-400.0,0.00019565,2]
[384187741,1757289050913,-910.1,0.00019565,2]
[384187742,1757289050923,-316.17033392,0.00019566,2]
[384187743,1757289050932,-400.0,0.00019566,2]
[384187744,1757289050942,-400.85,0.00019566,2]
[384187745,1757289050951,-592.33,0.00019566,2]
[384187746,1757289050961,-400.0,0.00019566,2]
[384187747,1757289050970,-400.0,0.00019566,2]
[384187748,1757289050980,-400.0,0.00019566,2]
[384187749,1757289050989,-1143.37,0.00019566,2]
[384187750,1757289050999,-400.0,0.00019566,2]
[384187751,1757289051008,-400.0,0.00019566,2]
[384187752,1757289051017,-400.0,0.00019566,2]
[384187753,1757289051027,-17.721237,0.00019566,2]
[384187754,1757289087812,225.0,0.00030137,120]
[384187757,1757289193329,160.0,0.00018607,7]
[384187759,1757289245151,185.99,0.00016438,2]
[384187761,1757289263829,150.0,0.000177,2]
[384187763,1757289327316,4947.237473,0.00018446,2]
[384187764,1757289409654,541.913698,0.00018446,2]
[384187765,1757289431245,3918.3,0.00018429,2]
[384187766,1757289439033,666.0,0.00018426,3]
[384187767,1757289455714,167.32,0.00014741,2]
[384187769,1757289468699,2332.83,0.00018427,2]
[384187770,1757289494924,158.66,9.194e-05,2]
[384187771,1757289495137,158.66,0.00010216,2]
[384187772,1757289495347,158.66,0.00011237,2]
[384187773,1757289495582,158.66,0.00012259,2]
[384187774,1757289495798,158.66,0.0001328,2]
[384187775,1757289496007,158.66,0.00014302,2]
[384187776,1757289496217,158.66,0.00015323,2]
[384187777,1757289497287,158.66,0.00016345,2]
[384187778,1757289497363,158.66,0.00017367,2]
[384187779,1757289497449,158.66,0.00018388,2]
[384187781,1757289535847,403.84,0.00018359,2]